bitfinex/quotes_BTCUSD_20220109
["timestamp","ask_amount","ask_price","bid_price","bid_amount"]
[1641695309234,1.08388404,42023.0,42020.0,0.11900967]
[1641695309435,1.08388404,42023.0,42020.0,0.05950367]
[1641695309637,1.08388404,42023.0,42021.0,0.059502]
[1641695310375,1.08188404,42023.0,42021.0,0.059502]
[1641695310575,1.08188404,42023.0,42021.0,0.17850378]
[1641695311276,1.08788404,42023.0,42021.0,0.17850378]
[1641695311475,1.08288404,42023.0,42021.0,0.17850378]
[1641695312476,1.07688404,42023.0,42021.0,0.17850378]
[1641695313276,0.006,42023.0,42021.0,0.17850378]
[1641695314329,0.16765001,42024.0,42021.0,0.17850378]
[1641695315227,0.17265001,42024.0,42021.0,0.17850378]
[1641695316428,0.16765001,42024.0,42021.0,0.17850378]
[1641695317128,0.17365001,42024.0,42021.0,0.17850378]
[1641695318176,0.17365001,42024.0,42022.0,0.21684843]
[1641695318375,0.16765001,42024.0,42022.0,0.21887798]
[1641695318576,0.16765001,42024.0,42021.0,0.22850378]
[1641695319077,0.16765001,42024.0,42021.0,0.17850378]
[1641695319278,0.17565001,42024.0,42021.0,0.17850378]
[1641695319878,0.17565001,42024.0,42022.0,0.05]
[1641695320278,0.17565001,42024.0,42023.0,0.383157]
[1641695320477,0.16765001,42024.0,42023.0,0.383157]
[1641695321380,0.18265001,42024.0,42023.0,0.383157]
[1641695322031,0.18265001,42024.0,42021.0,0.17850378]
[1641695322828,0.02291292,42023.0,42021.0,0.17850378]
[1641695323029,0.02291292,42023.0,42022.0,0.05]
[1641695323228,0.02291292,42023.0,42022.0,0.43444513]
[1641695323728,0.02291292,42023.0,42022.0,0.383157]
[1641695323929,0.02291292,42023.0,42021.0,0.17850378]
[1641695324927,0.02291292,42023.0,42021.0,0.17830378]
[1641695325129,0.03291292,42023.0,42021.0,0.17830378]
[1641695325580,0.03291292,42023.0,42022.0,0.05]
[1641695325980,0.03291292,42023.0,42022.0,0.433157]
[1641695326181,0.03291292,42023.0,42022.0,0.75222701]
[1641695326381,0.02291292,42023.0,42022.0,0.433157]
[1641695327185,0.03591292,42023.0,42022.0,0.440157]
[1641695327384,0.03591292,42023.0,42022.0,0.390157]
[1641695327786,0.03591292,42023.0,42022.0,0.007]
[1641695328386,0.02291292,42023.0,42021.0,0.219004]
[1641695328986,0.02291292,42023.0,42022.0,0.383157]
[1641695329232,0.03291292,42023.0,42022.0,0.383157]
[1641695329430,0.03291292,42023.0,42022.0,0.623157]
[1641695329833,0.03181292,42023.0,42022.0,0.623157]
[1641695330433,0.02181292,42023.0,42022.0,0.623157]
[1641695331234,0.03281292,42023.0,42022.0,0.623157]
[1641695332437,0.02181292,42023.0,42022.0,0.623157]
[1641695333182,0.03281292,42023.0,42022.0,0.623157]
[1641695334380,0.02181292,42023.0,42022.0,0.623157]
[1641695335182,0.03381292,42023.0,42022.0,0.84190261]
[1641695336083,0.03381292,42023.0,42022.0,0.623157]
[1641695336482,0.02181292,42023.0,42022.0,0.623157]
[1641695336925,0.02181292,42023.0,42022.0,0.673157]
[1641695337126,0.02181292,42023.0,42022.0,0.623157]
[1641695337330,0.03681292,42023.0,42022.0,0.622458]
[1641695337535,0.35793866,42023.0,42022.0,0.24]
[1641695337728,0.16408315,42023.0,42022.0,0.24]
[1641695337930,0.95755583,42023.0,42016.0,0.00042145]
[1641695338127,0.29203335,42022.0,42016.0,0.00042145]
[1641695338328,0.00120763,42017.0,42016.0,0.00042145]
[1641695338629,0.34355372,42017.0,42016.0,0.00042145]
[1641695339027,2.81149734,42017.0,42016.0,0.00042145]
[1641695339227,2.82549734,42017.0,42016.0,0.00042145]
[1641695339429,2.88380971,42017.0,42015.0,0.28229433]
[1641695339629,0.00129756,42016.0,42015.0,0.28229433]
[1641695339828,0.04909756,42016.0,42015.0,0.28229433]
[1641695340233,2.93600971,42017.0,42016.0,0.19090244]
[1641695340479,2.92200971,42017.0,42016.0,0.19090244]
[1641695340877,3.02933203,42017.0,42016.0,0.19090244]
[1641695341277,3.04233203,42017.0,42016.0,0.19090244]
[1641695341679,2.68826362,42017.0,42016.0,0.19090244]
[1641695342182,3.16665921,42017.0,42016.0,0.19090244]
[1641695342453,2.77156238,42017.0,42016.0,0.19090244]
[1641695342582,2.76497971,42017.0,42016.0,0.19090244]
[1641695343180,2.77897971,42017.0,42016.0,0.19090244]
[1641695343579,2.77897971,42017.0,42016.0,0.17956022]
[1641695343580,2.78023281,42017.0,42016.0,0.17956022]
[1641695343779,2.83684978,42017.0,42016.0,0.17956022]
[1641695344230,0.70884125,42016.0,42015.0,0.07260989]
[1641695344433,0.23525025,42016.0,42015.0,0.07260989]
[1641695344629,0.23131217,42016.0,42015.0,0.07260989]
[1641695345232,0.24231217,42016.0,42015.0,0.07260989]
[1641695345429,0.26412509,42016.0,42015.0,0.07260989]
[1641695346633,0.25312509,42016.0,42015.0,0.07260989]
[1641695347232,0.26422192,42016.0,42015.0,0.07260989]
[1641695348478,0.2,42015.0,42011.0,0.00042012]
[1641695348677,0.05954,42013.0,42011.0,0.00042012]
[1641695348879,0.80492863,42012.0,42011.0,0.00042012]
[1641695349081,0.00126744,42006.0,42000.0,0.2]
[1641695349280,0.0478,42005.0,42000.0,0.2]
[1641695349479,0.39206009,42003.0,42000.0,0.1712518]
[1641695349678,0.10735,42002.0,42000.0,0.16415231]
[1641695349879,0.1317,42002.0,42000.0,0.40415231]
[1641695350079,0.11445317,42001.0,42000.0,0.40415231]
[1641695350281,0.16225317,42001.0,42000.0,0.29925231]
[1641695350481,0.16225317,42001.0,42000.0,0.19935231]
[1641695350678,0.18712413,42001.0,42000.0,0.19978063]
[1641695350878,0.18712413,42001.0,42000.0,0.19478063]
[1641695351282,0.059559,41997.0,41984.0,0.24506174]
[1641695351483,0.01942363,41990.0,41980.0,0.36]
[1641695351757,0.16499421,41989.0,41980.0,0.3016]
[1641695351958,0.21499421,41989.0,41980.0,0.3016]
[1641695352156,0.21499421,41989.0,41982.0,0.33818562]
[1641695352157,0.27308944,41988.0,41982.0,0.33818562]
[1641695352357,0.33433993,41986.0,41980.0,0.3016]
[1641695352560,0.059567,41983.0,41980.0,0.3016]
[1641695352757,0.107367,41983.0,41980.0,0.3016]
[1641695353360,0.013,41983.0,41980.0,0.3016]
[1641695353560,0.013,41983.0,41981.0,0.62814874]
[1641695353857,0.013,41983.0,41982.0,0.73569419]
[1641695354057,0.013,41983.0,41982.0,1.11878119]
[1641695354257,0.013,41983.0,41982.0,1.65861351]
[1641695354457,0.0478,41994.0,41982.0,2.03075277]
[1641695354660,0.02181292,41996.0,41987.0,0.05954482]
[1641695354857,0.02181292,41996.0,41988.0,0.27259973]
[1641695355057,0.02181292,41993.0,41985.0,0.31928632]
[1641695355258,0.02181292,41993.0,41991.0,0.00042531]
[1641695355476,0.02181292,41993.0,41991.0,0.32844322]
[1641695355682,0.02181292,41993.0,41992.0,1.14432062]
[1641695355874,0.02181292,41993.0,41992.0,1.52740762]
[1641695356277,0.02181292,41993.0,41992.0,1.52783291]
[1641695356875,0.02181292,41993.0,41992.0,1.02783291]
[1641695357276,0.02181292,41993.0,41992.0,0.82172498]
[1641695357476,0.02181292,41993.0,41992.0,0.82215027]
[1641695358083,0.02181292,41999.0,41992.0,0.82215027]
[1641695358279,0.02181292,41999.0,41993.0,0.05953744]
[1641695358679,0.02181292,41999.0,41995.0,0.27006888]
[1641695359137,0.02181292,41999.0,41995.0,0.32960412]
[1641695359336,0.03281292,41999.0,41995.0,0.33860412]
[1641695359537,0.03281292,41999.0,41995.0,0.33901983]
[1641695359939,0.03281292,41999.0,41996.0,0.05]
[1641695360342,0.03281292,41999.0,41996.0,0.059534]
[1641695360539,0.02181292,41999.0,41996.0,0.059534]
[1641695360941,0.02181292,41999.0,41996.0,0.119061]
[1641695361339,0.02181292,41999.0,41996.0,0.132061]
[1641695361740,0.02181292,41999.0,41996.0,0.072534]
[1641695362640,0.02181292,41999.0,41996.0,0.059534]
[1641695363272,0.02181292,41999.0,41996.0,0.013]
[1641695364278,0.02181292,41999.0,41996.0,0.32961707]
[1641695364476,0.02181292,41999.0,41997.0,0.383087]
[1641695364675,0.02181292,41999.0,41998.0,1.03358597]
[1641695364875,0.02181292,41999.0,41998.0,1.41667297]
[1641695365074,0.02181292,41999.0,41998.0,0.61667297]
[1641695365275,0.02381292,41999.0,41998.0,0.63067297]
[1641695366277,0.02381292,41999.0,41998.0,0.96625373]
[1641695366482,0.00042094,42006.0,42000.0,0.65]
[1641695366734,0.00042094,42006.0,42005.0,0.00125169]
[1641695366932,0.00042094,42006.0,42005.0,0.63603599]
[1641695367235,0.000696,42016.0,42015.0,0.35484112]
[1641695368036,0.000696,42016.0,42015.0,0.61655878]
[1641695368535,0.00111806,42016.0,42015.0,1.22063857]
[1641695369334,0.00111806,42016.0,42015.0,0.96792091]
[1641695369535,0.00111806,42016.0,42015.0,0.392087]
[1641695369736,0.00111806,42016.0,42015.0,0.009]
[1641695369737,0.00030901,42016.0,42015.0,0.009]
[1641695369936,0.36808983,42024.0,42015.0,0.009]
[1641695370138,0.46808983,42024.0,42015.0,0.009]
[1641695370383,0.32388427,42023.0,42015.0,0.009]
[1641695370585,0.059509,42022.0,42015.0,0.249]
[1641695371285,0.059509,42022.0,42015.0,0.241]
[1641695372084,0.059509,42022.0,42015.0,0.2329]
[1641695372484,0.059509,42022.0,42015.0,0.2319]
[1641695372887,0.00042937,42021.0,42015.0,0.2319]
[1641695373285,0.059512,42020.0,42015.0,0.2359]
[1641695373788,0.36808983,42024.0,42015.0,0.2359]
[1641695373988,0.00041099,42021.0,42015.0,0.2359]
[1641695374629,0.00041099,42021.0,42015.0,0.2319]
[1641695375029,0.000411,42021.0,42015.0,0.2319]
[1641695375229,0.000411,42021.0,42015.0,0.2349]
[1641695375631,0.000411,42021.0,42016.0,0.059506]
[1641695376030,0.059508,42023.0,42016.0,0.059506]
[1641695376229,0.00041101,42021.0,42016.0,0.059506]
[1641695376435,0.00041101,42021.0,42015.0,0.2349]
[1641695376630,0.00041101,42021.0,42015.0,0.2319]
[1641695376835,0.05992101,42021.0,42015.0,0.2319]
[1641695377032,0.05951,42021.0,42015.0,0.2319]
[1641695377234,0.05992974,42021.0,42015.0,0.2349]
[1641695378275,0.05992996,42021.0,42015.0,0.2349]
[1641695378575,0.05992996,42021.0,42015.0,0.2319]
[1641695380975,0.05492996,42021.0,42015.0,0.2319]
[1641695382630,0.05451,42021.0,42015.0,0.2319]
[1641695382828,0.05492995,42021.0,42015.0,0.2319]
[1641695383631,0.05451,42021.0,42015.0,0.2319]
[1641695383930,0.05492995,42021.0,42015.0,0.2319]
[1641695384330,0.059517,42017.0,42015.0,0.2319]
[1641695386982,0.05951,42020.0,42015.0,0.2319]
[1641695390329,0.65326585,42022.0,42015.0,0.44633843]
[1641695390330,0.71277185,42022.0,42015.0,0.44633843]
[1641695390526,0.00041995,42021.0,42015.0,0.2319]
[1641695392034,0.059511,42018.0,42015.0,0.2319]
[1641695393096,0.00041994,42021.0,42016.0,0.22151545]
[1641695393798,0.00041996,42021.0,42016.0,0.21410175]
[1641695394399,0.05992596,42021.0,42018.0,0.059501]
[1641695394798,0.05992597,42021.0,42018.0,0.059501]
[1641695395699,0.05992597,42021.0,42016.0,0.05950895]
[1641695396097,0.05992597,42021.0,42015.0,0.2319]
[1641695396730,0.05992597,42021.0,42017.0,0.059506]
[1641695396931,0.059506,42021.0,42018.0,0.05950652]
[1641695397133,0.05992595,42021.0,42018.0,0.05950652]
[1641695397532,0.00041995,42021.0,42018.0,0.05950652]
[1641695397732,0.00041995,42021.0,42018.0,0.11901052]
[1641695397934,0.00041995,42021.0,42019.0,0.0545029]
[1641695398131,0.00041997,42021.0,42019.0,0.0545029]
[1641695399132,0.059503,42023.0,42019.0,0.0545029]
[1641695399331,0.00041997,42021.0,42019.0,0.0555029]
[1641695400577,0.00041997,42021.0,42019.0,0.0545029]
[1641695400984,0.00041997,42021.0,42018.0,0.05950707]
[1641695401377,0.059509,42020.0,42019.0,0.001]
[1641695401577,0.00041997,42021.0,42019.0,0.001]
[1641695402383,0.28616283,42024.0,42019.0,0.001]
[1641695402577,0.00041997,42021.0,42018.0,0.05950707]
[1641695402979,0.00041997,42021.0,42020.0,0.70982275]
[1641695403179,0.00041997,42021.0,42020.0,1.33543965]
[1641695403382,0.00011997,42021.0,42020.0,0.94419415]
[1641695403578,0.16714983,42024.0,42021.0,0.383087]
[1641695403579,0.1669698,42024.0,42021.0,0.383087]
[1641695403977,0.1666698,42024.0,42023.0,0.35133531]
[1641695404230,0.1663698,42024.0,42023.0,0.88442231]
[1641695404430,0.1660698,42024.0,42023.0,0.88442231]
[1641695404834,0.1657698,42024.0,42023.0,0.88442231]
[1641695405033,0.1654698,42024.0,42023.0,0.88442231]
[1641695405231,0.1651698,42024.0,42023.0,0.88442231]
[1641695405434,0.1651698,42024.0,42023.0,1.10660177]
[1641695405632,0.1648698,42024.0,42023.0,1.10660177]
[1641695405832,0.1645698,42024.0,42023.0,1.10660177]
[1641695406232,0.1642698,42024.0,42023.0,1.10660177]
[1641695406434,0.1639698,42024.0,42023.0,1.10660177]
[1641695406732,0.1639698,42024.0,42023.0,1.09860177]
[1641695406932,0.1636698,42024.0,42023.0,1.09860177]
[1641695407132,0.1633698,42024.0,42023.0,1.09985315]
[1641695407335,0.1633698,42024.0,42023.0,1.11185315]
[1641695407533,0.1630698,42024.0,42023.0,1.11185315]
[1641695407731,0.1627698,42024.0,42023.0,1.11185315]
[1641695408204,0.1624698,42024.0,42023.0,1.11185315]
[1641695408395,0.1624698,42024.0,42023.0,1.23081815]
[1641695408595,0.1624698,42024.0,42023.0,1.21881815]
[1641695408995,0.00598305,42026.0,42024.0,0.383087]
[1641695409194,0.00598095,42026.0,42025.0,0.6277917]
[1641695409397,0.00544047,42026.0,42025.0,0.7777917]
[1641695409598,0.00544047,42026.0,42025.0,0.38436537]
[1641695409801,0.00544047,42026.0,42025.0,0.56153095]
[1641695410200,0.00044051,42026.0,42025.0,0.56153095]
[1641695410401,0.00044051,42026.0,42025.0,0.383087]
[1641695410597,0.00044051,42026.0,42023.0,0.073477]
[1641695410998,0.00044051,42026.0,42024.0,0.383087]
[1641695411196,2.261e-05,42026.0,42024.0,0.44257702]
[1641695411400,0.00044049,42026.0,42024.0,0.54257702]
[1641695411647,0.00044049,42026.0,42024.0,0.64257702]
[1641695412037,0.00044049,42026.0,42024.0,0.44257702]
[1641695412437,0.00044028,42026.0,42024.0,0.44257702]
[1641695413439,0.00044028,42026.0,42024.0,0.45357702]
[1641695413642,0.00085806,42026.0,42024.0,0.45357702]
[1641695414441,0.00520054,42025.0,42024.0,0.45357702]
[1641695414646,0.00520054,42025.0,42018.0,0.00123175]
[1641695414840,0.00520054,42025.0,42011.0,0.24166192]
[1641695415041,0.00520054,42025.0,42016.0,0.383087]
[1641695415241,0.059511,42024.0,42012.0,0.00127987]
[1641695415486,0.59670475,42017.0,42015.0,0.044]
[1641695415684,0.32249995,42017.0,42015.0,0.044]
[1641695415884,0.32249995,42017.0,42016.0,0.383087]
[1641695416283,0.119027,42018.0,42016.0,0.383087]
[1641695416483,0.059513,42017.0,42016.0,0.383087]
[1641695416884,0.054513,42017.0,42016.0,0.38351777]
[1641695417383,0.061513,42017.0,42016.0,0.41751777]
[1641695418584,0.054513,42017.0,42016.0,0.00043077]
[1641695418986,0.054513,42017.0,42015.0,0.01]
[1641695419227,0.054513,42017.0,42016.0,0.00043077]
[1641695419430,0.067513,42017.0,42016.0,0.00743077]
[1641695419627,0.07011327,42017.0,42016.0,0.00743077]
[1641695419829,0.07271354,42017.0,42016.0,0.00743077]
[1641695420028,0.07271354,42017.0,42016.0,0.007]
[1641695420228,0.07271354,42017.0,42016.0,0.00743077]
[1641695420829,0.404115,42018.0,42017.0,0.33604016]
[1641695421233,0.404115,42018.0,42017.0,0.33645506]
[1641695421531,0.404115,42018.0,42017.0,0.33845506]
[1641695422333,0.404115,42018.0,42017.0,0.33846123]
[1641695422334,0.64924663,42018.0,42017.0,0.33846123]
[1641695422532,0.9983157,42018.0,42017.0,0.33846123]
[1641695422731,0.9983157,42018.0,42016.0,0.24]
[1641695422985,0.29021086,42017.0,42016.0,0.24]
[1641695423189,0.33801086,42017.0,41998.0,0.00123825]
[1641695423387,0.27589027,42005.0,41998.0,0.00123825]
[1641695423585,0.059532,42004.0,41999.0,0.383087]
[1641695423785,0.059532,42004.0,42000.0,0.05953019]
[1641695424186,0.059532,42004.0,41997.0,0.059532]
[1641695424989,0.059532,42004.0,41998.0,0.0595319]
[1641695425389,0.061532,42004.0,41998.0,0.0595319]
[1641695425789,0.061532,42004.0,42000.0,0.00042988]
[1641695426635,0.059532,42004.0,41993.0,0.47438042]
[1641695426836,0.059532,42004.0,42001.0,0.00042987]
[1641695427535,0.074532,42004.0,42001.0,0.00042987]
[1641695427736,0.074532,42004.0,41998.0,0.43785182]
[1641695427938,0.074532,42004.0,42002.0,0.00042986]
[1641695427939,0.015,42004.0,42002.0,0.00042986]
[1641695429335,0.011,42004.0,42002.0,0.00042986]
[1641695429937,0.07053,42004.0,42000.0,0.05952758]
[1641695430137,0.05953,42004.0,42002.0,0.00041213]
[1641695430383,0.49067713,42008.0,42002.0,0.00041213]
[1641695430987,0.05953,42004.0,41998.0,0.43785182]
[1641695431585,0.05953,42004.0,41998.0,0.52785182]
[1641695432383,0.05953,42004.0,42000.0,0.0004202]
[1641695433185,0.05953,42004.0,41999.0,0.21304952]
[1641695433385,0.07653,42004.0,42001.0,0.00042019]
[1641695434434,0.07653,42004.0,42002.0,0.00042041]
[1641695435438,0.07253,42004.0,41998.0,0.52785182]
[1641695435636,0.07253,42004.0,42002.0,0.0004204]
[1641695436239,0.07253,42004.0,41998.0,0.0854204]
[1641695437237,0.05953,42004.0,41998.0,0.0854204]
[1641695437438,0.12153,42004.0,41998.0,0.0854204]
[1641695437638,0.12153,42004.0,42000.0,0.059528]
[1641695438089,0.062,42004.0,42000.0,0.11905457]
[1641695438487,0.062,42004.0,42000.0,0.16905457]
[1641695438687,0.25792314,42008.0,42000.0,0.16905457]
[1641695438891,0.2882,42011.0,42003.0,0.316437]
[1641695439090,0.059524,42008.0,41999.0,0.06077425]
[1641695439390,0.059524,42008.0,42003.0,0.05]
[1641695440790,0.119053,42010.0,41999.0,0.33292598]
[1641695440791,0.059531,42003.0,41999.0,0.39245605]
[1641695441091,0.26460255,42005.0,42000.0,0.383087]
[1641695441293,0.26460255,42005.0,42000.0,0.059527]
[1641695441928,0.32413155,42005.0,41999.0,0.34392598]
[1641695442126,0.059529,42005.0,41999.0,0.34392598]
[1641695442328,0.059529,42005.0,41999.0,0.40345298]
[1641695442527,0.059529,42005.0,41999.0,0.40345498]
[1641695443027,0.059529,42005.0,41999.0,0.46298544]
[1641695443228,0.059529,42005.0,41999.0,0.40345644]
[1641695443429,0.059529,42005.0,41999.0,0.41445644]
[1641695443831,0.059529,42005.0,41999.0,0.08277571]
[1641695444632,0.059529,42005.0,41999.0,0.06077571]
[1641695444832,0.059529,42005.0,41999.0,0.40965372]
[1641695445475,0.069529,42005.0,41999.0,0.41965372]
[1641695445680,0.069529,42005.0,41999.0,0.04577571]
[1641695446075,0.069529,42005.0,41999.0,0.01]
[1641695446679,0.059529,42005.0,41998.0,0.0854204]
[1641695446878,0.35694833,42004.0,41998.0,0.0854204]
[1641695447077,0.059533,42001.0,41998.0,0.0854204]
[1641695447281,0.059533,42001.0,41999.0,0.383087]
[1641695447479,0.059533,42001.0,41999.0,0.44261791]
[1641695449453,0.077533,42001.0,41999.0,0.44861791]
[1641695450750,0.059533,42001.0,41999.0,0.44261791]
[1641695451650,0.067533,42001.0,41999.0,0.45061791]
[1641695452653,0.067533,42001.0,41999.0,0.44261791]
[1641695452878,0.059533,42001.0,41999.0,0.44261791]
[1641695453480,0.071533,42001.0,41999.0,0.45161791]
[1641695454280,0.071533,42001.0,41999.0,0.44161791]
[1641695454680,0.059533,42001.0,41999.0,0.43261791]
[1641695455581,0.086533,42001.0,41999.0,0.43361791]
[1641695456629,0.086533,42001.0,42000.0,0.46372018]
[1641695456830,0.059533,42001.0,42000.0,0.84680718]
[1641695457429,0.086533,42001.0,42000.0,0.84680718]
[1641695458730,0.059533,42001.0,42000.0,0.84680718]
[1641695459529,0.087533,42001.0,42000.0,0.84680718]
[1641695460801,0.059533,42001.0,42000.0,0.84680718]
[1641695461503,0.079533,42001.0,42000.0,0.84680718]
[1641695461703,0.079533,42001.0,42000.0,1.38835426]
[1641695461704,0.02,42001.0,42000.0,1.38835426]
[1641695461905,0.02,42001.0,42000.0,1.43835426]
[1641695462103,0.02,42001.0,42000.0,1.04803612]
[1641695462705,0.25352642,42011.0,42005.0,0.05952471]
[1641695462905,0.059525,42009.0,42004.0,0.11904243]
[1641695463104,0.059525,42009.0,42006.0,0.059523]
[1641695463505,0.082525,42009.0,42006.0,0.059523]
[1641695464735,0.082525,42009.0,42004.0,0.35815706]
[1641695464736,0.059525,42009.0,42004.0,0.35815706]
[1641695465634,0.094525,42009.0,42004.0,0.36315706]
[1641695465836,0.094525,42009.0,42005.0,0.059527]
[1641695466033,0.094525,42009.0,42004.0,0.36315706]
[1641695466934,0.059525,42009.0,42006.0,0.05952524]
[1641695467435,0.097525,42009.0,42006.0,0.06352524]
[1641695467639,0.097525,42009.0,42006.0,0.004]
[1641695468079,0.097525,42009.0,42006.0,0.06352532]
[1641695468282,0.097525,42009.0,42006.0,0.004]
[1641695468887,0.054525,42009.0,42001.0,0.45524692]
[1641695469280,0.054525,42009.0,42004.0,0.25636074]
[1641695469480,0.054525,42009.0,42006.0,0.0595245]
[1641695469681,0.054525,42009.0,42006.0,0.059525]
[1641695470681,0.05371644,42009.0,42006.0,0.11904973]
[1641695471081,0.05371644,42009.0,42007.0,0.059524]
[1641695471485,0.09471644,42009.0,42007.0,0.059524]
[1641695471727,0.09471644,42009.0,42007.0,0.057524]
[1641695472727,0.05371644,42009.0,42007.0,0.057524]
[1641695472930,0.05371644,42009.0,42007.0,0.117046]
[1641695473527,0.10671644,42009.0,42007.0,0.119046]
[1641695473730,0.10671644,42009.0,42007.0,0.059524]
[1641695473929,0.10671644,42009.0,42007.0,0.002]
[1641695474827,0.10671644,42009.0,42005.0,0.059527]
[1641695474828,0.05371644,42009.0,42005.0,0.059527]
[1641695475228,0.05371644,42009.0,42004.0,0.059525]
[1641695475484,0.07371644,42009.0,42005.0,0.003]
[1641695476783,0.05371644,42009.0,42000.0,0.46372018]
[1641695477082,0.05371644,42009.0,42005.0,0.059528]
[1641695477282,0.05371644,42009.0,42002.0,0.30023169]
[1641695477283,0.05371644,42009.0,42006.0,0.059522]
[1641695477482,0.05371644,42009.0,42002.0,0.35023169]
[1641695478584,0.05371644,42009.0,42005.0,0.11905455]
[1641695478884,0.05371644,42009.0,42002.0,0.35023169]
[1641695479131,0.32982074,42004.0,42002.0,0.119048]
[1641695479332,0.38934974,42004.0,42003.0,0.383087]
[1641695481336,0.00041992,42011.0,42006.0,0.059525]
[1641695481735,1.16420936,42017.0,42006.0,0.23808429]
[1641695481933,0.00041997,42011.0,42006.0,0.23808429]
[1641695482735,0.00041997,42011.0,42007.0,0.059523]
[1641695482986,0.05993997,42011.0,42008.0,0.11903992]
[1641695483585,0.08393997,42011.0,42008.0,0.11903992]
[1641695483987,0.08352,42011.0,42008.0,0.05951992]
[1641695484186,0.08352,42011.0,42003.0,0.209043]
[1641695484187,0.08393998,42011.0,42003.0,0.09]
[1641695484787,0.05993998,42011.0,42003.0,0.09]
[1641695484989,0.05993998,42011.0,42006.0,0.05952683]
[1641695485188,0.05993996,42011.0,42006.0,0.05952683]
[1641695485390,0.05993996,42011.0,42003.0,0.09]
[1641695485587,0.07693996,42011.0,42003.0,0.09]
[1641695485989,0.07693996,42011.0,42006.0,0.059525]
[1641695486191,0.07652,42011.0,42006.0,0.059525]
[1641695486488,0.07693996,42011.0,42008.0,0.05952398]
[1641695486736,0.05993996,42011.0,42008.0,0.05952398]
[1641695487333,0.05993998,42011.0,42008.0,0.05952398]
[1641695487536,0.07293998,42011.0,42008.0,0.05952398]
[1641695488336,0.07252,42011.0,42008.0,0.05952398]
[1641695488634,0.07293998,42011.0,42006.0,0.05952644]
[1641695488833,0.05993998,42011.0,42006.0,0.05952644]
[1641695489434,0.05952,42011.0,42006.0,0.05952644]
[1641695489635,0.07293997,42011.0,42006.0,0.05952644]
[1641695490683,0.05993997,42011.0,42003.0,0.09]
[1641695491085,0.05993997,42011.0,42003.0,0.19]
[1641695491383,0.05993997,42011.0,42004.0,0.21014795]
[1641695491584,0.05993997,42011.0,42003.0,0.112]
[1641695491784,0.05993996,42011.0,42006.0,0.059524]
[1641695492486,0.05993996,42011.0,42006.0,0.059526]
[1641695492884,0.05993997,42011.0,42007.0,0.059523]
[1641695493283,0.05993997,42011.0,42003.0,0.309048]
[1641695493488,0.13393997,42011.0,42003.0,0.209048]
[1641695493984,0.25253574,42006.0,42003.0,0.209048]
[1641695494237,0.059526,42005.0,42004.0,0.383087]
[1641695494840,0.059526,42005.0,42004.0,0.59415703]
[1641695495439,0.059526,42005.0,42004.0,0.69415703]
[1641695495638,0.059526,42005.0,42004.0,0.401087]
[1641695496040,0.38482139,42005.0,42004.0,0.401087]
[1641695497039,0.38482139,42005.0,42004.0,0.383087]
[1641695497238,0.38482139,42005.0,42004.0,0.79325253]
[1641695497239,0.059526,42005.0,42004.0,0.79325253]
[1641695497440,0.059525,42007.0,42006.0,0.05952469]
[1641695497642,0.119053,42010.0,42006.0,0.383087]
[1641695497881,0.00041993,42011.0,42006.0,0.05]
[1641695498081,0.00041993,42011.0,42006.0,0.1]
[1641695498282,0.32981319,42009.0,42006.0,0.2]
[1641695498687,0.32981319,42009.0,42007.0,0.059525]
[1641695498883,0.32981319,42009.0,42007.0,0.11905024]
[1641695499085,0.32981319,42009.0,42007.0,0.17857124]
[1641695499686,0.35681319,42009.0,42007.0,0.18157124]
[1641695500791,0.32981319,42009.0,42007.0,0.17857124]
[1641695501636,0.34381319,42009.0,42007.0,0.23357124]
[1641695503237,0.014,42009.0,42007.0,0.23357124]
[1641695503637,0.026,42009.0,42007.0,0.24157124]
[1641695504641,0.026,42009.0,42007.0,0.19157124]
[1641695504842,0.05952,42011.0,42007.0,0.17857124]
[1641695505041,0.05993997,42011.0,42009.0,0.05951929]
[1641695506087,0.05993999,42011.0,42009.0,0.05951929]
[1641695506491,0.05993999,42011.0,42009.0,0.10951929]
[1641695506888,0.05993999,42011.0,42009.0,0.15951929]
[1641695507090,0.05952,42011.0,42009.0,0.15951929]
[1641695507287,0.05993999,42011.0,42009.0,0.15951929]
[1641695507688,0.09393999,42011.0,42009.0,0.15951929]
[1641695508290,0.09393999,42011.0,42009.0,0.05951929]
[1641695508491,0.09393999,42011.0,42003.0,0.09]
[1641695508691,0.17016999,42011.0,42003.0,0.20906397]
[1641695508992,0.17016999,42011.0,42003.0,0.09]
[1641695509243,0.26284011,42008.0,42003.0,0.09]
[1641695509445,0.059532,42006.0,42003.0,0.09]
[1641695509644,0.059532,42006.0,42003.0,0.115]
[1641695509844,0.059532,42006.0,42004.0,0.059531]
[1641695510146,0.059532,42006.0,42003.0,0.05546992]
[1641695510147,0.06080721,42006.0,42003.0,0.05546992]
[1641695510345,0.06357521,42006.0,42003.0,0.05546992]
[1641695510549,0.06357521,42006.0,42003.0,0.03046992]
[1641695510550,0.00128476,42004.0,42003.0,0.03046992]
[1641695510745,0.04908476,42004.0,42003.0,0.03046992]
[1641695511549,0.05908476,42004.0,42003.0,0.03046992]
[1641695512746,0.04908476,42004.0,42003.0,0.03046992]
[1641695512987,0.07402476,42004.0,42003.0,0.03046992]
[1641695513187,0.36593688,42004.0,42003.0,0.03046992]
[1641695513389,0.36593688,42004.0,42000.0,0.46372018]
[1641695513588,0.119096,42002.0,42000.0,0.46372018]
[1641695513791,0.30741874,42001.0,42000.0,0.46372018]
[1641695513987,0.58318708,42001.0,42000.0,0.46372018]
[1641695515390,0.57826715,42001.0,42000.0,0.46372018]
[1641695515590,0.58926715,42001.0,42000.0,0.46372018]
[1641695516942,0.57826715,42001.0,42000.0,0.46372018]
[1641695517740,0.59026715,42001.0,42000.0,0.46372018]
[1641695518940,0.57826715,42001.0,42000.0,0.46372018]
[1641695519740,0.58926715,42001.0,42000.0,0.46372018]
[1641695520040,0.54146715,42001.0,42000.0,0.46372018]
[1641695520699,0.28184841,42001.0,42000.0,0.46372018]
[1641695520899,0.506186,42001.0,42000.0,0.46372018]
[1641695521698,0.516186,42001.0,42000.0,0.46372018]
[1641695521902,0.57573427,42001.0,42000.0,0.4556599]
[1641695522199,0.57573427,42001.0,41997.0,0.00041884]
[1641695522200,0.059555,41999.0,41997.0,0.00041884]
[1641695522401,0.37027573,41998.0,41993.0,0.000696]
[1641695522600,0.00129556,41994.0,41993.0,0.000696]
[1641695522900,0.8483856,41994.0,41993.0,0.000696]
[1641695523101,1.32054399,41994.0,41993.0,0.000696]